[Event "121st Swiss Championship 2022"]
[Site "Samnaun-Compatsch"]
[Date "2022.07.05"]
[Round "2.4"]
[White "Gschnitzer, Adrian"]
[Black "Collin, Moritz Valentin"]
[Result "1-0"]
[ECO "B12"]
[WhiteElo "2433"]
[BlackElo "2129"]
[Annotator "TA"]
[PlyCount "57"]
[EventDate "2022.06.28"]
[EventType "swiss"]
[EventCountry "SUI"]
[SourceTitle "playchess.com"]
[Source "ChessBase"]
[SourceQuality "1"]
[TimeControl "40/5400+30:1800+30"]

{[%evp 10,57,31,22,31,36,31,8,16,21,25,2,33,39,43,24,54,54,208,191,205,209,198,190,186,185,250,245,264,262,318,320,339,326,339,323,468,385,550,540,873,873,872,843,827,757,814,820,800,788]} 1. e4 {[%emt 0:00:04]} c6 {[%emt 0:00:03]} 2. d4 {[%emt 0:00:14]} d5 {[%emt 0:00:04]} 3. e5 {[%emt 0:00:10]} Bf5 {[%emt 0:00:04]} 4. Nf3 {[%emt 0:00:11]} e6 {[%emt 0:00:05]} 5. Be2 {[%emt 0:00:08]} Ne7 {[%emt 0:00:05]} 6. O-O {[%emt 0:00:20]} Ng6 {[%emt 0:00:05] 6...h6 is a critical line. B12: Caro-Kann: Advance Variation.} 7. a4 {[%emt 0:00:25]} c5 {[%emt 0:00:37] [#]} 8. a5 $146 {[%emt 0:11:29]} ({Predecessor:} 8. Be3 Bg4 9. c3 cxd4 10. cxd4 Nc6 11. Qb3 a6 12. Rc1 Qc7 13. Nbd2 Nge7 14. Qc3 {1-0 (48) Omidi,A (2315)-Ashraf,A (2260) Sari 2022}) 8... a6 {[%emt 0:06:32] The position is equal.} 9. Be3 {[%emt 0:02:13]} Nc6 {[%emt 0:01:05]} 10. dxc5 {[%emt 0:07:03]} Ngxe5 {[%emt 0:08:58]} 11. Nxe5 {[%emt 0:00:34]} Nxe5 {[%emt 0:00:25]} 12. g4 {[%emt 0:09:02]} Bg6 {[%emt 0:10:15][%cal Oh7h5]} 13. f4 $1 {[%emt 0:00:45]} Nc6 {[%emt 0:11:17] Loses the game.} (13... d4 $14) 14. f5 $18 {[%emt 0:01:42]} d4 {[%emt 0:13:04]} 15. fxg6 {[%emt 0:00:34]} hxg6 {[%emt 0:00:10]} 16. Bf4 {[%emt 0:02:10]} Bxc5 {[%emt 0:04:28] [#] Hoping for ...g5.} 17. Bd3 $1 {[%emt 0:01:05]} e5 {[%emt 0:05:41]} (17... Nxa5 $142 18. Qf3 O-O) 18. Bg3 {[%emt 0:03:55]} O-O {[%emt 0:08:08]} 19. Nd2 {[%emt 0:00:48]} Bb4 {[%emt 0:05:29]} 20. Nc4 {[%emt 0:02:38]} Qe7 {[%emt 0:01:13]} 21. Qf3 {[%emt 0:03:54]} Rae8 {[%emt 0:01:30]} 22. Qe4 {[%emt 0:01:08]} Qc5 {[%emt 0:01:41]} (22... Qe6 {is a better defense.} 23. Rf2 f5 24. gxf5 gxf5 25. Rxf5 Rxf5) 23. h4 {[%emt 0:05:37][%cal Bh2h4,Bh4h5][%mdl 32]} Re6 {[%emt 0:04:47]} (23... f5 $142 24. gxf5 gxf5 25. Rxf5 Rxf5 26. Qxf5 e4 27. Bxe4 Rxe4 28. Qxe4 Qxc4) 24. h5 {[%emt 0:01:32] White is clearly winning.} Bxa5 {[%emt 0:02:09]} 25. Nxa5 {[%emt 0:03:01]} Nxa5 {[%emt 0:00:10]} 26. b4 {[%emt 0:00:39]} Qxb4 {[%emt 0:01:17]} 27. Be1 {[%emt 0:00:27][%mdl 64] [#] Skewer} Qe7 {[%emt 0:01:02]} 28. Bxa5 {[%emt 0:02:04]} Qg5 {[%emt 0:00:52]} 29. Rf2 {[%emt 0:03:01] Weighted Error Value: White=0.02 (flawless) /Black=0.49} 1-0

[Event "121st Swiss Championship 2022"]
[Site "Samnaun-Compatsch"]
[Date "2022.07.05"]
[Round "2.5"]
[White "Jaggy, Matteo"]
[Black "Gaehwiler, Gabriel"]
[Result "0-1"]
[ECO "A50"]
[WhiteElo "2093"]
[BlackElo "2420"]
[Annotator "TA"]
[PlyCount "60"]
[EventDate "2022.06.28"]
[EventType "swiss"]
[EventCountry "SUI"]
[SourceTitle "playchess.com"]
[Source "ChessBase"]
[SourceQuality "1"]
[TimeControl "40/5400+30:1800+30"]

{[%evp 13,60,21,18,-8,0,-8,-20,-30,12,-42,-35,-39,-35,-43,-30,-33,-29,-24,-32,-31,0,0,0,0,0,-6,-4,-50,-34,-77,-80,-87,-6,-16,-8,-16,-15,-12,0,-60,-57,-68,-70,-1793,-835,-29983,-29984,-2601,-1982]} 1. d4 {[%emt 0:00:04]} Nf6 {[%emt 0:02:07]} 2. c4 {[%emt 0:00:09]} b6 {[%emt 0:01:42]} 3. Nc3 {[%emt 0:06:47]} Bb7 {[%emt 0:01:44]} 4. Nf3 {[%emt 0:03:09]} g6 {[%emt 0:08:44]} 5. g3 {[%emt 0:12:17]} Bg7 {[%emt 0:11:04]} 6. Bg2 {[%emt 0:02:33]} O-O {[%emt 0:00:50]} 7. O-O {[%emt 0:01:02]} Ne4 {[%emt 0:00:13]} 8. Qd3 {[%emt 0:13:05] A50: Queen's Fianchetto Defence (1 d4 Nf6 2 c4 b6).} Nxc3 {[%emt 0:07:40]} 9. bxc3 {[%emt 0:02:20]} Nc6 {[%emt 0:02:50] [#]} 10. h4 $146 {[%emt 0:08:09][%cal Oh4h5] The position is equal.} ({Predecessor:} 10. e4 Na5 11. Be3 d6 12. Nd2 c5 13. d5 Qd7 14. a4 Rae8 15. f4 e6 16. dxe6 Qxe6 {1-0 (25) Keymer,V (2558)-Bortnyk,O (2598) Chess.com INT 2020}) 10... Na5 {[%emt 0:13:10]} 11. Bf4 {[%emt 0:09:50]} ({Better is} 11. Nd2 $11) 11... Ba6 {[%emt 0:11:05]} 12. Nd2 {[%emt 0:01:24]} c6 {[%emt 0:01:01]} 13. e4 {[%emt 0:12:29] [#]} Nxc4 $1 {[%emt 0:08:46]} 14. Rfe1 {[%emt 0:03:12]} ({But not} 14. Nxc4 d5 15. Qe3 (15. exd5 cxd5 16. Rfe1 Bxc4 $17) 15... Bxc4 $17) 14... d5 {[%emt 0:10:56]} 15. Nxc4 {[%emt 0:07:15]} Bxc4 {[%emt 0:06:44]} 16. Qe3 {[%emt 0:00:05]} dxe4 {[%emt 0:00:29]} 17. Qxe4 {[%emt 0:00:30]} e6 {[%emt 0:01:12]} 18. Qxc6 {[%emt 0:00:54]} Rc8 {[%emt 0:00:27]} 19. Qa4 {[%emt 0:01:14]} Bd5 {[%emt 0:00:52] Hoping for ...Bxg2.} 20. Bxd5 {[%emt 0:11:34]} (20. Bg5 $11 f6 21. Bd2) 20... Qxd5 $15 {[%emt 0:00:22]} 21. Qxa7 {[%emt 0:00:33]} Rxc3 {[%emt 0:01:39]} 22. Rad1 {[%emt 0:01:36]} Qc6 {[%emt 0:05:04]} (22... b5 $17 {White should prevent ...Ra8.} 23. Qb6 Ra8) 23. d5 $11 {[%emt 0:01:13]} exd5 {[%emt 0:00:14][%cal Be6d5,Bd5d4,Bd4d3][%mdl 32]} 24. Re7 {[%emt 0:00:14]} d4 {[%emt 0:01:08]} 25. Rb1 {[%emt 0:00:34]} b5 {[%emt 0:01:26]} 26. Rb7 {[%emt 0:00:31]} (26. Qb7 $11) 26... d3 $15 {[%emt 0:00:49] Threatens to win with ...Rc2.} 27. R7xb5 {[%emt 0:00:32]} Rc2 {[%emt 0:00:51] And now ...d2 would win.} 28. Qa5 {[%emt 0:00:42][%mdl 8192] [#] Inhibits d2.} (28. Qb7 $15) 28... Bd4 {[%emt 0:00:16]} (28... Rxf2 $142 $3 {[%mdl 512]} 29. Kxf2 Bd4+ 30. Be3 Qc2+ 31. Kg1 Bxe3+ 32. Kh1 d2) 29. Rf1 {[%emt 0:00:29]} Qf3 {[%emt 0:00:11]} 30. Qe1 {[%emt 0:00:15]} Re2 {[%emt 0:00:02] Weighted Error Value: White=0.65/Black=0.52} 0-1

[Event "121st Swiss Championship 2022"]
[Site "Samnaun-Compatsch"]
[Date "2022.07.05"]
[Round "2.6"]
[White "Fecker, Noah"]
[Black "Buehler, Michael"]
[Result "1/2-1/2"]
[ECO "C95"]
[WhiteElo "2387"]
[BlackElo "2064"]
[Annotator "TA"]
[PlyCount "90"]
[EventDate "2022.06.28"]
[EventType "swiss"]
[EventCountry "SUI"]
[SourceTitle "playchess.com"]
[Source "ChessBase"]
[SourceQuality "1"]
[TimeControl "40/5400+30:1800+30"]

{[%evp 29,90,17,17,8,12,12,14,10,10,0,0,0,0,0,14,6,0,10,1,-146,-135,-147,-143,-159,-165,-164,-9,-206,-202,-197,-197,-197,-188,-181,-181,-170,-156,-218,-174,-211,-214,-239,-179,-180,-182,-197,-41,-196,-75,-187,0,0,0,0,0,0,0,0,0,0,0,0,0]} 1. e4 {[%emt 0:00:03]} e5 {[%emt 0:00:11]} 2. Nf3 {[%emt 0:00:06]} Nc6 {[%emt 0:00:09]} 3. Bb5 {[%emt 0:00:10]} a6 {[%emt 0:00:18]} 4. Ba4 {[%emt 0:00:13]} Nf6 {[%emt 0:00:16]} 5. O-O {[%emt 0:00:43]} Be7 {[%emt 0:00:18]} 6. Re1 {[%emt 0:00:27]} b5 {[%emt 0:00:50]} 7. Bb3 {[%emt 0:00:22]} d6 {[%emt 0:00:45]} 8. c3 {[%emt 0:01:31]} O-O {[%emt 0:00:14]} 9. h3 {[%emt 0:00:06]} Nb8 {[%emt 0:00:39]} 10. d4 {[%emt 0:00:29]} Nbd7 {[%emt 0:00:25]} 11. Nbd2 {[%emt 0:00:11][%cal Bb1d2,Bd2f1,Bf1g3][%mdl 32]} Bb7 {[%emt 0:00:22]} 12. Bc2 {[%emt 0:00:10]} Re8 {[%emt 0:01:08]} 13. Nf1 {[%emt 0:00:07]} Bf8 {[%emt 0:00:13]} 14. Ng3 {[%emt 0:00:06]} g6 {[%emt 0:00:10]} 15. Bd2 {[%emt 0:00:04]} Bg7 {[%emt 0:04:28]} 16. Qc1 {[%emt 0:00:10] C95: Closed Ruy Lopez: Breyer Variation with 10 d4.} d5 {[%emt 0:04:54]} 17. Bg5 {[%emt 0:00:46]} Qc8 {[%emt 0:02:56]} 18. dxe5 {[%emt 0:00:10]} Nxe4 {[%emt 0:05:48]} 19. Bf4 {[%emt 0:09:34][%cal Rc2e4]} Nxg3 {[%emt 0:10:49]} 20. Bxg3 {[%emt 0:03:45]} c5 {[%emt 0:02:54] [#]} 21. Qf4 $146 {[%emt 0:17:30]} ({Predecessor:} 21. Qd2 Re7 22. Bb3 Qc6 23. Rad1 Nb6 24. Nh4 Rae8 25. f4 f6 26. Nf3 fxe5 27. Nxe5 {½-½ (52) Giuliani,C (2282)-Bujdak,P (2203) LSS email 2020}) 21... Nf8 {[%emt 0:10:39]} 22. Ng5 {[%emt 0:10:06]} Qd7 {[%emt 0:07:06]} 23. Rad1 {[%emt 0:10:17]} Qe7 {[%emt 0:09:54]} 24. Bh4 {[%emt 0:06:55]} (24. Qe3 $11) 24... h6 $17 {[%emt 0:09:15]} 25. Ne4 {[%emt 0:09:50]} g5 {[%emt 0:03:29]} 26. Bxg5 {[%emt 0:03:05]} hxg5 {[%emt 0:13:11]} 27. Nxg5 {[%emt 0:00:01]} Bh6 $2 {[%emt 0:02:06]} (27... Qc7 $1 $19 {White must now prevent ...Ne6.} 28. Qf5 Rxe5 29. Rxe5 Bxe5 30. Nxf7 Qxf7 31. Qxe5 Re8 32. Qg3+ Qg7) 28. Re3 $2 {[%emt 0:02:11]} Ng6 $1 $19 {[%emt 0:04:46]} ({Inferior is} 28... Bxg5 29. Rg3 Ne6 30. Qh4 $11) 29. Bxg6 {[%emt 0:00:36]} fxg6 {[%emt 0:01:28]} 30. Rg3 {[%emt 0:00:57]} Kg7 {[%emt 0:01:57]} 31. h4 {[%emt 0:06:39]} Rf8 {[%emt 0:00:32]} 32. Qe3 {[%emt 0:01:50][%cal Oe3c5]} Rf5 {[%emt 0:00:19]} 33. f4 {[%emt 0:00:01]} (33. Qxc5 $17 Bxg5 34. Qb6) 33... Bxg5 {[%emt 0:00:23]} 34. hxg5 {[%emt 0:00:01]} Rh8 {[%emt 0:00:37]} 35. Rh3 {[%emt 0:04:02]} Rff8 {[%emt 0:02:14]} 36. Rxh8 {[%emt 0:00:56]} Rxh8 {[%emt 0:00:03]} 37. e6 {[%emt 0:00:04] [#]} Rf8 $2 {[%emt 0:00:16]} (37... Qd6 $1 $19 {...Re8 is the strong threat.} 38. Re1 d4 39. Qe5+ Qxe5 40. Rxe5 Kf8 41. Rxc5 Rh4) 38. g4 $2 {[%emt 0:01:26] [#]} (38. Re1 $15) 38... Kg8 {[%emt 0:01:15]} (38... Qd6 $1 $19 {and Black stays clearly on top.} 39. e7 Re8) 39. Qe5 {[%emt 0:03:50]} (39. Rd2 $17 d4 40. cxd4 cxd4 41. Rxd4) 39... d4 $2 {[%emt 0:02:01]} (39... Re8 $19 40. Re1 Bc8 41. Qxd5 Bxe6) 40. cxd4 $11 {[%emt 0:00:54] Threatens to win with d5. The position is equal.} cxd4 {[%emt 0:00:32]} 41. Rxd4 {[%emt 0:32:35] Strongly threatening Rd7.} Qh7 {[%emt 0:11:00]} 42. Rd7 {[%emt 0:00:00] Active counter play!} Qh1+ {[%emt 0:00:21]} 43. Kf2 {[%emt 0:00:00][%csl Gd7][%cal Re5g7]} Qg2+ {[%emt 0:01:15]} 44. Ke3 {[%emt 0:00:00][%csl Gd7][%cal Re5g7] The board is on fire.} Qf3+ {[%emt 0:02:36]} 45. Kd2 {[%emt 0:00:00][%csl Gd7][%cal Re5g7]} Qf2+ {[%emt 0:03:36] White happily takes the draw.  Weighted Error Value: White=0.47/Black=0.32} 1/2-1/2

[Event "121st Swiss Championship 2022"]
[Site "Samnaun-Compatsch"]
[Date "2022.07.05"]
[Round "2.7"]
[White "Udipi, Kala Kishan"]
[Black "Hakimifard, Ghazal"]
[Result "1/2-1/2"]
[ECO "E15"]
[WhiteElo "2057"]
[BlackElo "2296"]
[Annotator "TA"]
[PlyCount "57"]
[EventDate "2022.06.28"]
[EventType "swiss"]
[EventCountry "SUI"]
[SourceTitle "playchess.com"]
[Source "ChessBase"]
[SourceQuality "1"]
[TimeControl "40/5400+30:1800+30"]

{[%evp 27,57,13,21,15,36,31,34,33,35,41,33,33,33,35,35,26,42,40,50,22,22,25,53,43,43,45,60,49,50,0,52,0]} 1. d4 {[%emt 0:00:03]} Nf6 {[%emt 0:00:08]} 2. c4 {[%emt 0:00:09]} e6 {[%emt 0:00:05]} 3. Nf3 {[%emt 0:00:09]} b6 {[%emt 0:00:06]} 4. g3 {[%emt 0:00:11]} Ba6 {[%emt 0:00:12]} 5. b3 {[%emt 0:00:08]} Bb4+ {[%emt 0:01:14]} 6. Bd2 {[%emt 0:00:17]} Be7 {[%emt 0:00:08]} 7. Bg2 {[%emt 0:00:10]} c6 {[%emt 0:00:24][%cal Bc7c6,Bc6c5][%mdl 32]} 8. Bc3 {[%emt 0:00:41]} d5 {[%emt 0:00:32]} 9. Nbd2 {[%emt 0:02:01]} Nbd7 {[%emt 0:01:15]} 10. O-O {[%emt 0:00:21]} O-O {[%emt 0:00:11]} 11. Re1 {[%emt 0:02:29]} c5 {[%emt 0:05:11]} 12. e4 {[%emt 0:02:19]} dxe4 {[%emt 0:04:26]} 13. Nxe4 {[%emt 0:01:01]} Nxe4 {[%emt 0:01:31]} 14. Rxe4 {[%emt 0:00:07]} Bb7 {[%emt 0:00:39]} 15. Re1 {[%emt 0:01:06] [#] E15: Queen's Indian: 4 g3 sidelines, 4 g3 Ba6 and 4 g3 Bb7 early deviations.} cxd4 $146 {[%emt 0:06:07]} ({Predecessor:} 15... Bf6 16. Ne5 Bxg2 17. Kxg2 cxd4 18. Nc6 Qc7 19. Nxd4 a6 20. Qf3 Rac8 21. Rad1 Rfd8 22. Ne2 Bxc3 23. Nxc3 Nf6 24. Ne4 Nxe4 {½-½ (24) Andreikin,D (2737)-Zhigalko,S (2671) Tallinn 2016}) 16. Nxd4 {[%emt 0:01:28]} Bxg2 {[%emt 0:00:07]} 17. Kxg2 {[%emt 0:00:12]} Qc7 {[%emt 0:10:43] Against Nc6} 18. Qf3 {[%emt 0:07:29]} Bf6 {[%emt 0:07:53]} 19. Nb5 {[%emt 0:08:59]} Qc5 {[%emt 0:02:08]} 20. Rad1 {[%emt 0:08:09]} Bxc3 {[%emt 0:02:13]} 21. Nxc3 {[%emt 0:00:46]} Nf6 {[%emt 0:04:12]} 22. Rd3 {[%emt 0:06:27]} a6 {[%emt 0:03:36]} 23. Ne4 {[%emt 0:11:33]} Nxe4 {[%emt 0:00:15]} 24. Qxe4 {[%emt 0:00:11]} Rad8 {[%emt 0:08:35]} 25. Red1 {[%emt 0:00:52]} Rxd3 {[%emt 0:00:04]} 26. Qxd3 {[%emt 0:00:36]} Qc6+ {[%emt 0:06:01]} 27. Qf3 {[%emt 0:00:22]} Qc7 {[%emt 0:00:34]} 28. Qd3 {[%emt 0:01:02]} Qc6+ {[%emt 0:03:52]} 29. Qf3 {[%emt 0:05:32] Weighted Error Value: White=0.10 (very precise) /Black=0.06 (flawless)} (29. Kg1 $14) 1/2-1/2

[Event "121st Swiss Championship 2022"]
[Site "Samnaun-Compatsch"]
[Date "2022.07.05"]
[Round "2.8"]
[White "Georgescu, Lena"]
[Black "Perreard, Nicolas"]
[Result "1-0"]
[ECO "C43"]
[WhiteElo "2279"]
[BlackElo "2055"]
[Annotator "TA"]
[PlyCount "53"]
[EventDate "2022.06.28"]
[EventType "swiss"]
[EventCountry "SUI"]
[SourceTitle "playchess.com"]
[Source "ChessBase"]
[SourceQuality "1"]
[TimeControl "40/5400+30:1800+30"]

{[%evp 14,53,36,24,64,50,52,62,73,83,81,77,100,91,74,87,94,85,94,80,85,93,82,51,62,35,93,77,90,109,145,153,330,318,357,344,29986,29987,29987,29988,29988,29988]} 1. e4 {[%emt 0:00:03]} e5 {[%emt 0:00:07]} 2. Nf3 {[%emt 0:00:05]} Nf6 {[%emt 0:00:05]} 3. d4 {[%emt 0:00:05]} Nxe4 {[%emt 0:00:13]} 4. Bd3 {[%emt 0:00:02]} d5 {[%emt 0:00:22]} 5. Nxe5 {[%emt 0:00:08]} Nd7 {[%emt 0:00:06]} 6. Nxd7 {[%emt 0:00:07]} Bxd7 {[%emt 0:00:25]} 7. O-O {[%emt 0:00:16]} Be7 {[%emt 0:01:00]} 8. c4 {[%emt 0:00:33]} O-O {[%emt 0:01:26] C43: Petroff Defence: 3 d4.} 9. cxd5 {[%emt 0:04:43]} Nf6 {[%emt 0:00:36]} 10. Nc3 {[%emt 0:00:37] [#]} Bd6 $146 {[%emt 0:00:54] Prevents Bf4. White is slightly better.} ({Predecessor:} 10... a6 11. Bf4 b5 12. a3 Bc8 13. Bc2 Bg4 14. Qd3 Bh5 15. Qh3 Bg6 16. Bxg6 hxg6 {1-0 (33) Hoellrigl,W (2208)-Lair,G (2005) Austria 2000}) 11. Bg5 {[%emt 0:04:27][%cal Bc1g5,Bg5h4,Bh4g3][%mdl 32]} h6 {[%emt 0:00:09]} 12. Bh4 {[%emt 0:00:57]} a6 {[%emt 0:00:45]} 13. Bc2 {[%emt 0:06:03]} Re8 {[%emt 0:03:14]} 14. h3 {[%emt 0:13:06]} b5 {[%emt 0:02:13][%cal Bb7b5,Bb5b4][%mdl 32]} 15. a3 {[%emt 0:01:57][%cal Ba2a3,Ba3a4][%mdl 32]} a5 {[%emt 0:01:22]} 16. Qd3 {[%emt 0:04:22]} g5 {[%emt 0:00:13]} 17. Bg3 {[%emt 0:00:47] Black must now prevent f4.} b4 {[%emt 0:01:16]} 18. Ne2 {[%emt 0:09:37] aiming for f4.} Rb8 {[%emt 0:02:48] And now ...Bb5 would win.} 19. a4 {[%emt 0:05:43] Inhibits Bb5.} Rb6 {[%emt 0:03:48]} ({Black should try} 19... b3 $14 20. Bd1 Qe7) 20. Rfe1 $16 {[%emt 0:09:49]} Bc8 {[%emt 0:02:01] [#]} 21. Bxd6 $1 {[%emt 0:04:43]} Rxd6 {[%emt 0:00:46]} 22. Ng3 {[%emt 0:00:36]} Rxd5 $2 {[%emt 0:12:12] Black cannot hold the game after this.} (22... Re7 $16 {was called for.} 23. Rac1 Qe8 24. Rxe7 Qxe7) 23. Bb3 $18 {[%emt 0:14:35]} Rxe1+ {[%emt 0:06:01]} 24. Rxe1 {[%emt 0:00:05]} Rxd4 $2 {[%emt 0:00:20] [#]} (24... Be6 $18) 25. Qg6+ $1 {[%emt 0:00:26] White mates.} Kh8 {[%emt 0:01:01]} 26. Qxh6+ {[%emt 0:01:40]} Kg8 {[%emt 0:00:44]} 27. Qxg5+ {[%emt 0:02:23] Weighted Error Value: White=0.04 (flawless) /Black=0.58} 1-0

[Event "121st Swiss Championship 2022"]
[Site "Samnaun-Compatsch"]
[Date "2022.07.05"]
[Round "2.9"]
[White "Rohrer, Christophe"]
[Black "Labelle, Ambroise"]
[Result "1-0"]
[ECO "C07"]
[WhiteElo "2246"]
[BlackElo "2045"]
[Annotator "TA"]
[PlyCount "91"]
[EventDate "2022.06.28"]
[EventType "swiss"]
[EventCountry "SUI"]
[SourceTitle "playchess.com"]
[Source "ChessBase"]
[SourceQuality "1"]
[TimeControl "40/5400+30:1800+30"]

{[%evp 10,91,20,15,14,23,42,28,27,27,39,33,32,0,11,0,0,0,0,0,4,-3,0,0,6,0,243,231,235,227,217,243,238,-9,227,205,532,86,86,86,93,78,84,91,113,105,111,79,83,80,78,89,90,88,91,87,81,69,60,77,100,50,54,51,339,337,306,85,124,116,120,83,118,170,230,222,372,349,970,958,943,906,877,872]} 1. e4 {[%emt 0:00:04]} e6 {[%emt 0:00:08]} 2. d4 {[%emt 0:00:06]} d5 {[%emt 0:00:08]} 3. Nd2 {[%emt 0:00:10]} c5 {[%emt 0:00:12]} 4. exd5 {[%emt 0:00:15]} Qxd5 {[%emt 0:00:04]} 5. Ngf3 {[%emt 0:00:26]} cxd4 {[%emt 0:00:35]} 6. Bc4 {[%emt 0:00:13]} Qd7 {[%emt 0:00:09] C07: French Tarrasch: 3...c5, 4 Ngf3 and 4 exd5 Qxd5.} 7. O-O {[%emt 0:00:50]} Nf6 {[%emt 0:00:51]} 8. Nb3 {[%emt 0:01:06]} Nc6 {[%emt 0:00:24] White has an edge.} 9. Nbxd4 {[%emt 0:01:22]} Nxd4 {[%emt 0:00:09]} 10. Nxd4 {[%emt 0:00:26]} a6 {[%emt 0:00:10] Against Bb5} 11. a4 {[%emt 0:03:30]} Bd6 {[%emt 0:03:36]} 12. h3 {[%emt 0:03:09]} (12. Re1 {keeps more tension.} Qc7 13. Nf5 Bxh2+ 14. Kh1) 12... O-O {[%emt 0:04:27]} 13. c3 {[%emt 0:05:58]} Qc7 {[%emt 0:06:30]} 14. Bd3 {[%emt 0:02:22]} b6 {[%emt 0:03:53]} 15. Re1 {[%emt 0:21:35]} Bb7 {[%emt 0:02:42]} 16. Bg5 {[%emt 0:01:16] [#] Black must now prevent Bxf6.} Bh2+ $146 {[%emt 0:12:29]} ({Predecessor:} 16... Nd5 17. Qg4 Rfe8 18. Rad1 Nf4 19. Bxf4 Bxf4 20. Qh4 g6 21. Be4 Bxe4 22. Rxe4 Bh2+ 23. Kh1 Be5 24. Nf3 Bg7 25. Rc4 Qa7 26. Rc6 h6 {½-½ (26) Klebel,M (2360)-Levitt,J (2480) Augsburg 1989}) 17. Kh1 {[%emt 0:02:37] And now Bxf6 would win.} Bf4 $2 {[%emt 0:02:00]} (17... Nd5 $11) 18. Bxf6 $18 {[%emt 0:02:39]} gxf6 {[%emt 0:02:11]} 19. Qg4+ {[%emt 0:03:59]} (19. Qh5 f5 $11) 19... Kh8 {[%emt 0:00:16] Threatens to win with ...Rg8.} 20. Qh4 $1 {[%emt 0:01:49][%csl Gd3,LRf6,LRh7][%cal Rh4h7]} f5 {[%emt 0:00:29]} 21. Qf6+ {[%emt 0:00:47]} Kg8 {[%emt 0:00:44] [#]} 22. Bxf5 $1 {[%emt 0:03:14][%cal Od4e6] Hoping for Nxe6!} Qd8 $2 {[%emt 0:07:55] [#]} (22... exf5 23. Nxf5 Bxg2+ 24. Kg1 Bh2+ 25. Kxg2) (22... h6 {is more resistant.} 23. Be4 Bg5) 23. Qxd8 $2 {[%emt 0:00:48]} (23. Bxh7+ $1 $18 {[%mdl 512] is the precise move to win.} Kxh7 24. Qxf4) 23... Raxd8 $16 {[%emt 0:05:24]} 24. Be4 {[%emt 0:01:18]} Bc8 {[%emt 0:03:59]} 25. g3 {[%emt 0:02:04]} Bc7 {[%emt 0:03:31]} 26. Kg2 {[%emt 0:06:23] 0x0.000bd12bbbf5dp-1022s more active pieces.} e5 {[%emt 0:05:58]} 27. Nc6 {[%emt 0:03:34]} Rd2 {[%emt 0:00:32]} 28. b4 {[%emt 0:00:53]} Kg7 {[%emt 0:02:00]} 29. Red1 {[%emt 0:05:21]} Rxd1 {[%emt 0:00:06]} 30. Rxd1 {[%emt 0:00:10]} f5 {[%emt 0:00:48] Prevents g4.} 31. Bd5 {[%emt 0:02:32]} Kf6 {[%emt 0:03:45]} 32. c4 {[%emt 0:02:47]} Bd7 {[%emt 0:09:38]} 33. Rc1 {[%emt 0:05:54]} Bxc6 {[%emt 0:02:09]} 34. Bxc6 $14 {[%emt 0:00:06][%mdl 4096] Endgame KRB-KRB} Rd8 {[%emt 0:00:51]} 35. Bd5 {[%emt 0:02:24]} (35. Bb7 $16) 35... Bd6 {[%emt 0:01:45]} 36. c5 {[%emt 0:00:55]} Rc8 $2 {[%emt 0:01:32][%mdl 8192]} (36... bxc5 $1 $14 37. bxc5 Rc8) 37. Bb7 $18 {[%emt 0:01:34]} Rc7 {[%emt 0:00:15][%cal Rb6c5]} 38. c6 {[%emt 0:06:36]} ({Resist} 38. Bxa6 $6 bxc5 39. b5 Ra7 $18) (38. Rd1 $18 {has better winning chances.} Bxc5 39. bxc5 Rxb7 40. Rd6+ Ke7 41. Rh6) 38... a5 {[%emt 0:02:22]} 39. bxa5 {[%emt 0:00:38]} bxa5 {[%emt 0:00:02]} 40. Kf3 {[%emt 0:01:46]} Re7 {[%emt 0:03:20]} 41. Bc8 {[%emt 0:32:13]} e4+ {[%emt 0:35:12]} (41... Rf7 $142 42. g4 fxg4+ 43. hxg4 (43. Bxg4 Ke7+ 44. Ke3 Bc7 $16) 43... Ke7+ 44. Bf5 Kd8) 42. Ke3 {[%emt 0:01:22]} Re5 {[%emt 0:03:17]} (42... Ke5 $142 43. Bd7 Bc7) 43. c7 {[%emt 0:00:00]} Re7 $2 {[%emt 0:00:00] [#]} (43... Rc5 44. Rxc5 Bxc5+ 45. Ke2 Bd6 46. Bxf5 Bxc7) 44. Bd7 $1 {[%emt 0:00:00][%mdl 512] White is clearly winning.} Bxc7 {[%emt 0:00:00]} 45. Rxc7 {[%emt 0:00:00]} Ke5 {[%emt 0:00:00]} 46. Rb7 {[%emt 0:00:00] Weighted Error Value: White=0.36/Black=0.46} 1-0